bitfinex-derivatives/quotes_BTCF0:USTF0_20251230
["timestamp","ask_amount","ask_price","bid_price","bid_amount"]
[1767070267504,0.15468,87399.0,87383.0,0.00017164]
[1767070267708,0.02758839,87398.0,87383.0,0.00017164]
[1767070267901,0.15468,87399.0,87383.0,0.00017164]
[1767070268208,0.02758851,87398.0,87383.0,0.00017164]
[1767070268412,0.15468,87399.0,87383.0,0.00017164]
[1767070269502,0.00017164,87400.0,87383.0,0.00017164]
[1767070269699,0.18226386,87399.0,87383.0,0.00017164]
[1767070269899,0.15468,87399.0,87383.0,0.00017164]
[1767070270305,0.00017164,87400.0,87383.0,0.00017164]
[1767070270610,0.18226201,87399.0,87383.0,0.00017164]
[1767070270909,0.02758201,87398.0,87383.0,0.00017164]
[1767070271111,0.15468,87399.0,87383.0,0.00017164]
[1767070271309,0.02758113,87398.0,87383.0,0.00017164]
[1767070271509,0.00017164,87400.0,87383.0,0.00017164]
[1767070271814,0.1822609,87399.0,87383.0,0.00017164]
[1767070272007,0.0275809,87398.0,87383.0,0.00017164]
[1767070272208,0.15468,87399.0,87383.0,0.00017164]
[1767070272406,0.05732,87398.0,87383.0,0.00017164]
[1767070273511,0.05732,87397.0,87383.0,0.00017164]
[1767070278418,0.00017164,87400.0,87387.0,0.15585884]
[1767070278617,0.09736,87412.0,87389.0,0.0114576]
[1767070278818,0.08489084,87411.0,87400.0,0.15585884]
[1767070279019,0.03902584,87410.0,87386.0,0.05732]
[1767070279207,0.011455,87410.0,87390.0,0.15585884]
[1767070279712,0.00017164,87409.0,87390.0,0.15585884]
[1767070280116,0.0114554,87407.0,87386.0,0.05732]
[1767070280316,0.0114554,87407.0,87390.0,0.15585884]
[1767070280518,0.0687754,87407.0,87390.0,0.15585884]
[1767070281415,0.05732,87407.0,87387.0,0.09736]
[1767070281615,0.05732,87407.0,87390.0,0.15585884]
[1767070282214,0.0114555,87406.0,87390.0,0.15585884]
[1767070287627,0.0114561,87402.0,87390.0,0.15585884]
[1767070288422,0.0114556,87406.0,87390.0,0.15585884]
[1767070289232,0.05732,87407.0,87390.0,0.15585884]
[1767070289233,0.0114559,87403.0,87390.0,0.15585884]
[1767070290430,0.05732,87407.0,87390.0,0.15585884]
[1767070290820,0.0114559,87403.0,87390.0,0.15585884]
[1767070295931,0.0687754,87407.0,87390.0,0.15585884]
[1767070297634,0.0114558,87404.0,87390.0,0.15585884]
[1767070297931,0.0114555,87406.0,87390.0,0.15585884]
[1767070298937,0.0114555,87406.0,87391.0,0.05732]
[1767070299333,0.0114559,87403.0,87391.0,0.05732]
[1767070299837,0.0687754,87407.0,87391.0,0.05732]
[1767070301238,0.0114558,87404.0,87391.0,0.05732]
[1767070305534,0.05732,87407.0,87391.0,0.05732]
[1767070307038,0.0114555,87406.0,87391.0,0.05732]
[1767070310336,0.02753442,87405.0,87391.0,0.05732]
[1767070310536,0.0114555,87406.0,87391.0,0.05732]
[1767070310731,0.02753441,87405.0,87391.0,0.05732]
[1767070310938,0.05732,87407.0,87391.0,0.05732]
[1767070311242,0.02753547,87406.0,87391.0,0.05732]
[1767070311446,0.02753547,87405.0,87391.0,0.05732]
[1767070311746,0.02753518,87404.0,87391.0,0.05732]
[1767070311937,0.05732,87407.0,87391.0,0.05732]
[1767070312139,0.02753461,87406.0,87391.0,0.05732]
[1767070312338,0.0114561,87402.0,87391.0,0.05732]
[1767070317247,0.0114556,87406.0,87391.0,0.05732]
[1767070317448,0.02753487,87405.0,87391.0,0.05732]
[1767070317647,0.02753487,87404.0,87391.0,0.05732]
[1767070317847,0.15468,87407.0,87391.0,0.05732]
[1767070318049,0.02753494,87406.0,87391.0,0.05732]
[1767070318352,0.15468,87407.0,87391.0,0.05732]
[1767070318550,0.02753457,87406.0,87391.0,0.05732]
[1767070318740,0.15468,87407.0,87391.0,0.05732]
[1767070330560,0.05732,87406.0,87391.0,0.05732]
[1767070342071,0.0114556,87405.0,87391.0,0.05732]
[1767070344170,0.0114561,87402.0,87391.0,0.05732]
[1767070346877,0.0687756,87406.0,87391.0,0.05732]
[1767070347075,0.011456,87402.0,87391.0,0.05732]
[1767070362582,0.0687755,87406.0,87391.0,0.05732]
[1767070362882,0.02743862,87405.0,87391.0,0.05732]
[1767070363077,0.0687755,87406.0,87391.0,0.05732]
[1767070363276,0.02743909,87405.0,87391.0,0.05732]
[1767070363476,0.0687755,87406.0,87391.0,0.05732]
[1767070363678,0.02743909,87405.0,87391.0,0.05732]
[1767070363878,0.0687755,87406.0,87391.0,0.05732]
[1767070364078,0.02743909,87405.0,87391.0,0.05732]
[1767070364278,0.0687755,87406.0,87391.0,0.05732]
[1767070364481,0.02743978,87405.0,87391.0,0.05732]
[1767070364683,0.0687755,87406.0,87391.0,0.05732]
[1767070364881,0.02743978,87405.0,87391.0,0.05732]
[1767070365076,0.0687755,87406.0,87391.0,0.05732]
[1767070365278,0.02744026,87405.0,87391.0,0.05732]
[1767070365478,0.0687755,87406.0,87391.0,0.05732]
[1767070365784,0.02744026,87405.0,87391.0,0.05732]
[1767070365982,0.0687755,87406.0,87391.0,0.05732]
[1767070366182,0.02744026,87405.0,87391.0,0.05732]
[1767070366483,0.0687755,87406.0,87391.0,0.05732]
[1767070366784,0.02744085,87405.0,87391.0,0.05732]
[1767070366976,0.0114558,87404.0,87391.0,0.05732]
[1767070368376,0.05732,87406.0,87391.0,0.05732]
[1767070368575,0.02744274,87405.0,87391.0,0.05732]
[1767070368776,0.0687755,87406.0,87391.0,0.05732]
[1767070368979,0.02744272,87405.0,87391.0,0.05732]
[1767070369180,0.02744407,87404.0,87391.0,0.05732]
[1767070369383,0.0687755,87406.0,87391.0,0.05732]
[1767070369583,0.02744406,87405.0,87391.0,0.05732]
[1767070369782,0.02744406,87404.0,87391.0,0.05732]
[1767070369974,0.0687755,87406.0,87391.0,0.05732]
[1767070370175,0.02744408,87405.0,87391.0,0.05732]
[1767070370379,0.0687755,87406.0,87391.0,0.05732]
[1767070372291,0.05732,87406.0,87391.0,0.05732]
[1767070373393,0.0114556,87405.0,87391.0,0.05732]
[1767070381999,0.05732,87406.0,87391.0,0.05732]
[1767070382201,0.0114564,87399.0,87391.0,0.05732]
[1767070382600,0.05732,87406.0,87383.0,0.00017164]
[1767070382788,0.02745491,87405.0,87384.0,0.05732]
[1767070382991,0.02745491,87404.0,87384.0,0.05732]
[1767070383196,0.0114565,87399.0,87384.0,0.05732]
[1767070386905,0.05732,87406.0,87383.0,0.00017164]
[1767070386906,0.155783,87400.0,87383.0,0.00017164]
[1767070387102,0.155783,87400.0,87383.0,4e-08]
[1767070387308,0.0114581,87386.0,87366.0,0.09736]
[1767070387507,0.0114581,87386.0,87367.0,0.05732]
[1767070387702,0.0114581,87386.0,87370.0,0.155783]
[1767070391102,0.0114585,87383.0,87369.0,0.00017164]
[1767070391608,0.0114585,87383.0,87370.0,0.05732]
[1767070392310,0.01162964,87387.0,87370.0,0.05732]
[1767070396810,0.01162964,87387.0,87369.0,0.00017164]
[1767070400008,0.00017164,87387.0,87369.0,0.00017164]
[1767070400321,0.00017164,87387.0,87370.0,0.155783]
[1767070402409,0.00017164,87387.0,87369.0,0.00017164]
[1767070402609,0.00017164,87387.0,87370.0,0.155783]
[1767070403816,0.00017164,87387.0,87369.0,0.00017164]
[1767070404114,0.00017164,87387.0,87370.0,0.155783]
[1767070405219,0.01162964,87387.0,87370.0,0.155783]
[1767070406315,0.01162964,87387.0,87369.0,0.00017164]
[1767070411424,0.00017164,87387.0,87369.0,0.00017164]
[1767070411826,0.00017164,87387.0,87370.0,0.155783]
[1767070415517,0.00017164,87387.0,87369.0,0.00017164]
[1767070415719,0.00017164,87387.0,87370.0,0.155783]
[1767070419834,0.00017164,87387.0,87369.0,0.00017164]
[1767070420033,0.00017164,87387.0,87370.0,0.155783]
[1767070422529,0.00017164,87387.0,87369.0,0.00017164]
[1767070424326,0.01162964,87387.0,87369.0,0.00017164]
[1767070425734,0.09736,87386.0,87369.0,0.00017164]
[1767070427738,0.0114583,87385.0,87369.0,0.00017164]
[1767070430135,0.09736,87386.0,87369.0,0.00017164]
[1767070430641,0.1088181,87386.0,87369.0,0.00017164]
[1767070436950,0.0114585,87383.0,87369.0,0.00017164]
[1767070437148,0.0114588,87381.0,87369.0,0.00017164]
[1767070437350,0.05732,87382.0,87369.0,1.64e-06]
[1767070438162,0.0114592,87378.0,87369.0,1.64e-06]
[1767070440864,0.0687787,87382.0,87369.0,1.64e-06]
[1767070443364,0.05732,87382.0,87369.0,1.64e-06]
[1767070450467,0.00017164,87387.0,87369.0,1.64e-06]
[1767070450665,0.15468,87386.0,87369.0,1.64e-06]
[1767070452170,0.15468,87385.0,87369.0,1.64e-06]
[1767070458280,0.00017164,87387.0,87369.0,1.64e-06]
[1767070458780,0.05732,87386.0,87369.0,1.64e-06]
[1767070460376,0.00017164,87387.0,87369.0,1.64e-06]
[1767070460579,0.05732,87386.0,87369.0,1.64e-06]
[1767070465588,0.0687781,87386.0,87369.0,1.64e-06]
[1767070469493,0.05732,87386.0,87369.0,1.64e-06]
[1767070502907,0.05732,87386.0,87370.0,0.1558815]
[1767070507424,0.05732,87385.0,87370.0,0.1558815]
[1767070526844,0.05732,87385.0,87369.0,1.64e-06]
[1767070527045,0.05732,87385.0,87370.0,0.1558815]
[1767070530649,0.05732,87385.0,87369.0,1.64e-06]
[1767070530850,0.05732,87385.0,87370.0,0.1558815]
[1767070535051,0.05732,87385.0,87369.0,1.64e-06]
[1767070537760,0.05732,87385.0,87370.0,0.1558815]
[1767070540162,0.05732,87385.0,87369.0,1.64e-06]
[1767070540360,0.05732,87385.0,87370.0,0.1558815]
[1767070542457,0.05732,87385.0,87369.0,1.64e-06]
[1767070542757,0.05732,87385.0,87370.0,0.1558815]
[1767070545061,0.05732,87385.0,87369.0,1.64e-06]
[1767070545255,0.05732,87385.0,87370.0,0.1558815]
[1767070548659,0.05732,87385.0,87369.0,1.64e-06]
[1767070561366,0.0114583,87384.0,87369.0,1.64e-06]
[1767070561965,0.05732,87385.0,87369.0,1.64e-06]
[1767070578387,0.00017164,87387.0,87369.0,1.64e-06]
[1767070578696,0.05749164,87387.0,87369.0,1.64e-06]
[1767070579088,0.00017164,87387.0,87369.0,1.64e-06]
[1767070579284,0.05749164,87387.0,87369.0,1.64e-06]
[1767070581198,0.00017164,87387.0,87369.0,1.64e-06]
[1767070581889,0.0114583,87384.0,87369.0,1.64e-06]
[1767070589793,0.00017164,87387.0,87369.0,1.64e-06]
[1767070589995,0.0114592,87378.0,87352.0,0.10326698]
[1767070590294,0.0114597,87374.0,87344.0,0.24199356]
[1767070590498,0.0114615,87361.0,87344.0,0.09736]
[1767070590800,0.0114615,87361.0,87343.0,0.05732]
[1767070591099,0.0114615,87361.0,87340.0,0.09736]
[1767070591100,0.01163314,87361.0,87340.0,0.09736]
[1767070591301,0.00012148,87360.0,87340.0,0.09736]
[1767070592106,0.00012148,87360.0,87341.0,0.00017164]
[1767070608610,0.15609555,87360.0,87341.0,0.00017164]
[1767070608819,0.00012148,87360.0,87341.0,0.00017164]
[1767070609813,0.00017164,87361.0,87350.0,0.15597407]
[1767070610614,0.00017164,87361.0,87342.0,0.0114638]
[1767070610815,0.00017164,87361.0,87350.0,0.15597407]
[1767070611814,0.00017164,87361.0,87342.0,0.0114638]
[1767070612012,0.00017164,87361.0,87350.0,0.15597407]
[1767070613920,0.00017164,87361.0,87344.0,0.05732]
[1767070614217,0.00017164,87361.0,87350.0,0.15597407]
[1767070616716,0.00017164,87361.0,87344.0,0.0687835]
[1767070616914,0.00017164,87361.0,87350.0,0.15597407]
[1767070617810,0.00017164,87361.0,87344.0,0.0687835]
[1767070618010,0.00017164,87361.0,87350.0,0.15597407]
[1767070618607,0.00017164,87361.0,87344.0,0.0687835]
[1767070618818,0.00017164,87361.0,87350.0,0.15597407]
[1767070620020,0.0114597,87374.0,87350.0,0.15597407]
[1767070620218,0.18452579,87373.0,87350.0,0.15597407]
[1767070620419,0.02980579,87372.0,87350.0,0.15597407]
[1767070621021,0.00017164,87370.0,87350.0,0.15597407]
[1767070621219,0.02980579,87369.0,87350.0,0.15597407]
[1767070622725,0.02980579,87369.0,87345.0,0.0974]
[1767070622927,0.02980579,87369.0,87350.0,0.15597407]
[1767070630026,0.0114605,87368.0,87350.0,0.15597407]
[1767070631728,0.0114609,87365.0,87350.0,0.15597407]
[1767070631929,0.0114604,87369.0,87350.0,0.15597407]
[1767070632130,0.02981578,87368.0,87350.0,0.15597407]
[1767070632328,0.0114604,87369.0,87350.0,0.15597407]
[1767070632629,0.02981684,87368.0,87350.0,0.15597407]
[1767070632830,0.02981684,87367.0,87350.0,0.15597407]
[1767070633132,0.0114604,87369.0,87350.0,0.15597407]
[1767070633426,0.02981727,87368.0,87350.0,0.15597407]
[1767070633630,0.02981727,87367.0,87350.0,0.15597407]
[1767070633833,0.0114604,87369.0,87350.0,0.15597407]
[1767070634026,0.02981764,87368.0,87350.0,0.15597407]
[1767070634227,0.02981764,87367.0,87350.0,0.15597407]
[1767070634424,0.0114604,87369.0,87350.0,0.15597407]
[1767070634624,0.0298187,87368.0,87350.0,0.15597407]
[1767070634832,0.0298187,87367.0,87350.0,0.15597407]
[1767070635022,0.0114604,87369.0,87350.0,0.15597407]
[1767070635222,0.0298196,87368.0,87350.0,0.15597407]
[1767070635434,0.0298196,87367.0,87350.0,0.15597407]
[1767070635634,0.0114606,87367.0,87350.0,0.15597407]
[1767070638137,0.0114606,87367.0,87350.0,0.21329407]
[1767070638738,0.0114606,87367.0,87350.0,0.05732]
[1767070638939,0.0114606,87367.0,87350.0,0.21329407]
[1767070641647,0.011461,87365.0,87350.0,0.21329407]
[1767070647238,0.0114613,87362.0,87350.0,0.21329407]
[1767070647652,0.0114613,87362.0,87341.0,0.00017164]
[1767070647653,0.0114615,87360.0,87348.0,0.05732]
[1767070649946,0.0114615,87360.0,87344.0,0.05732]
[1767070654950,0.0974,87362.0,87344.0,0.05732]
[1767070656252,0.0114618,87358.0,87344.0,0.05732]
[1767070656453,0.15597407,87354.0,87323.0,0.0114663]
[1767070656756,0.15597407,87354.0,87319.0,0.0974]
[1767070656757,0.0114629,87350.0,87330.0,0.15597407]
[1767070656953,0.0114629,87350.0,87331.0,0.05732]
[1767070657554,0.00017174,87349.0,87332.0,0.00017174]
[1767070658462,0.0114632,87348.0,87329.0,0.05732]
[1767070659158,0.0114632,87348.0,87316.0,0.0114672]
[1767070659361,0.0114632,87348.0,87320.0,0.15597407]
[1767070659660,0.0114632,87348.0,87330.0,0.15597407]
[1767070660257,0.0114632,87348.0,87325.0,0.05732]
[1767070662466,0.0114632,87348.0,87330.0,0.15597407]
[1767070663371,0.0114632,87348.0,87325.0,0.05732]
[1767070664767,0.0114634,87346.0,87325.0,0.05732]
[1767070670262,0.05732,87347.0,87325.0,0.05732]
[1767070670771,0.0687832,87347.0,87325.0,0.05732]
[1767070673169,0.0114615,87361.0,87332.0,0.0114651]
[1767070673368,0.0114619,87357.0,87333.0,0.05732]
[1767070673672,0.0974,87356.0,87333.0,0.05732]
[1767070673864,0.0114622,87355.0,87333.0,0.05732]
[1767070674267,0.0114626,87352.0,87335.0,0.00017174]
[1767070674466,0.05736,87351.0,87335.0,0.00017174]
[1767070681970,0.05736,87350.0,87335.0,0.00017174]
[1767070682372,0.05736,87349.0,87335.0,0.00017174]
[1767070682572,0.05736,87348.0,87335.0,0.00017174]
[1767070682778,0.00736,87349.0,87335.0,0.00017174]
[1767070684887,0.05736,87349.0,87335.0,0.00017174]
[1767070685676,0.00017174,87353.0,87335.0,0.00017174]
[1767070685877,0.15476,87352.0,87335.0,0.00017174]
[1767070686976,0.05736,87351.0,87335.0,0.00017174]
[1767070687985,0.00017174,87353.0,87335.0,0.00017174]
[1767070688288,0.15476,87352.0,87335.0,0.00017174]
[1767070689593,0.00017174,87353.0,87335.0,0.00017174]
[1767070689793,0.15476,87352.0,87335.0,0.00017174]
[1767070690495,0.00017174,87353.0,87335.0,0.00017174]
[1767070690693,0.15476,87352.0,87335.0,0.00017174]
[1767070690889,0.00017174,87353.0,87335.0,0.00017174]
[1767070691089,0.15476,87352.0,87335.0,0.00017174]
[1767070692092,0.00017174,87353.0,87335.0,0.00017174]
[1767070692293,0.15476,87352.0,87335.0,0.00017174]
[1767070694300,0.00017174,87353.0,87335.0,0.00017174]
[1767070694501,0.15476,87352.0,87335.0,0.00017174]
[1767070695306,0.00017174,87353.0,87335.0,0.00017174]
[1767070695514,0.15476,87352.0,87335.0,0.00017174]
[1767070696212,0.00017174,87353.0,87335.0,0.00017174]
[1767070696413,0.15476,87352.0,87335.0,0.00017174]
[1767070697110,0.00017174,87353.0,87335.0,0.00017174]
[1767070697310,0.05736,87351.0,87335.0,0.00017174]
[1767070699513,0.00017174,87353.0,87335.0,0.00017174]
[1767070699808,0.05736,87352.0,87335.0,0.00017174]
[1767070700013,0.15476,87352.0,87335.0,0.00017174]
[1767070702515,0.05736,87351.0,87335.0,0.00017174]
[1767070705310,0.05732,87350.0,87335.0,0.00017174]
[1767070706518,0.00017174,87353.0,87335.0,0.00017174]
[1767070706818,0.18455348,87352.0,87335.0,0.00017174]
[1767070707021,0.15472,87352.0,87335.0,0.00017174]
[1767070708619,0.05732,87351.0,87335.0,0.00017174]
[1767070711717,0.00017174,87353.0,87335.0,0.00017174]
[1767070711917,0.18456338,87352.0,87335.0,0.00017174]
[1767070712117,0.15472,87352.0,87335.0,0.00017174]
[1767070714028,0.00017174,87353.0,87335.0,0.00017174]
[1767070714327,0.15472,87352.0,87335.0,0.00017174]
[1767070714827,0.00017174,87353.0,87335.0,0.00017174]
[1767070715029,0.0114629,87350.0,87335.0,0.00017174]
[1767070715322,0.0114632,87347.0,87329.0,0.15472]
[1767070720532,0.0114632,87347.0,87323.0,0.0114663]
[1767070720733,0.0114632,87347.0,87324.0,0.15472]
[1767070722229,0.0114636,87344.0,87324.0,0.15472]
[1767070722625,0.0114631,87348.0,87324.0,0.15472]
[1767070726233,0.0114639,87342.0,87324.0,0.05732]
[1767070726433,0.0114643,87339.0,87324.0,0.05732]
[1767070726624,0.05732,87338.0,87324.0,0.05732]
[1767070733942,0.0687844,87338.0,87324.0,0.05732]
[1767070736038,0.0687844,87338.0,87320.0,0.15604317]
[1767070736449,0.05732,87338.0,87320.0,0.15604317]
[1767070737043,0.05732,87338.0,87319.0,0.05732]
[1767070737246,0.05732,87338.0,87320.0,0.15604317]
[1767070743156,0.05732,87338.0,87320.0,0.16750987]
[1767070744050,0.0114629,87350.0,87328.0,0.15604317]
[1767070744252,0.18457004,87349.0,87328.0,0.15604317]
[1767070744455,0.18457004,87348.0,87328.0,0.15604317]
[1767070744754,0.02985004,87347.0,87328.0,0.15604317]
[1767070754774,0.02985004,87347.0,87326.0,0.05732]
[1767070754979,0.02985004,87347.0,87330.0,0.15604317]
[1767070755779,0.02985004,87347.0,87326.0,0.05732]
[1767070755981,0.02985004,87347.0,87330.0,0.15604317]
[1767070759583,0.15472,87346.0,87330.0,0.15604317]
[1767070759771,0.02985004,87345.0,87330.0,0.15604317]
[1767070766488,0.05732,87345.0,87330.0,0.15604317]
[1767070766686,0.05732,87344.0,87330.0,0.15604317]
[1767070766886,0.03232,87344.0,87330.0,0.15604317]
[1767070768581,0.03232,87344.0,87326.0,0.0687859]
[1767070768787,0.03232,87344.0,87330.0,0.15604317]
[1767070772490,0.03232,87344.0,87331.0,0.05732]
[1767070775100,0.03232,87344.0,87334.0,0.15604317]
[1767070777803,0.03232,87349.0,87334.0,0.15604317]
[1767070777999,0.03232,87349.0,87340.0,0.15604317]
[1767070778503,0.0297052,87348.0,87340.0,0.15604317]
[1767070778700,0.0297052,87347.0,87340.0,0.15604317]
[1767070779001,0.0297052,87346.0,87337.0,0.15604317]
[1767070779197,0.03232,87349.0,87337.0,0.15604317]
[1767070779497,0.02970515,87348.0,87337.0,0.15604317]
[1767070779702,0.02970515,87347.0,87337.0,0.15604317]
[1767070779904,0.02970515,87346.0,87337.0,0.15604317]
[1767070780102,0.03232,87349.0,87337.0,0.15604317]
[1767070780302,0.02970506,87348.0,87337.0,0.15604317]
[1767070780600,0.02970506,87347.0,87337.0,0.15604317]
[1767070780901,0.02970506,87346.0,87337.0,0.15604317]
[1767070781095,0.03232,87349.0,87337.0,0.15604317]
[1767070781300,0.02970512,87348.0,87339.0,0.15604317]
[1767070781490,0.02970512,87347.0,87331.0,0.05732]
[1767070781691,0.02970512,87346.0,87338.0,0.15604317]
[1767070781894,0.03232,87349.0,87338.0,0.15604317]
[1767070782099,0.0297052,87348.0,87338.0,0.15604317]
[1767070782299,0.0297052,87347.0,87338.0,0.15604317]
[1767070782597,0.0297052,87346.0,87338.0,0.15604317]
[1767070782799,0.03232,87349.0,87338.0,0.15604317]
[1767070783100,0.02970525,87348.0,87338.0,0.15604317]
[1767070783297,0.02970525,87347.0,87338.0,0.15604317]
[1767070783498,0.02970525,87346.0,87338.0,0.15604317]
[1767070783689,0.03232,87349.0,87338.0,0.15604317]
[1767070783890,0.02970668,87348.0,87338.0,0.15604317]
[1767070784091,0.02970668,87347.0,87338.0,0.15604317]
[1767070784296,0.02970668,87346.0,87338.0,0.15604317]
[1767070784499,0.03232,87349.0,87331.0,0.05732]
[1767070784700,0.02970674,87348.0,87331.0,0.05732]
[1767070784901,0.02970674,87347.0,87331.0,0.05732]
[1767070785101,0.02970674,87346.0,87331.0,0.05732]
[1767070785302,0.03232,87349.0,87331.0,0.05732]
[1767070785493,0.02970707,87348.0,87331.0,0.05732]
[1767070785692,0.03232,87349.0,87331.0,0.05732]
[1767070785693,0.02970707,87347.0,87331.0,0.05732]
[1767070785893,0.02970707,87346.0,87331.0,0.05732]
[1767070786093,0.03232,87349.0,87331.0,0.05732]
[1767070786392,0.02970731,87348.0,87331.0,0.05732]
[1767070786588,0.02970731,87347.0,87331.0,0.05732]
[1767070786802,0.02970731,87346.0,87331.0,0.05732]
[1767070787001,0.03232,87349.0,87331.0,0.05732]
[1767070787300,0.02970728,87348.0,87331.0,0.05732]
[1767070787505,0.02970728,87347.0,87331.0,0.05732]
[1767070787705,0.02970728,87346.0,87331.0,0.05732]
[1767070788001,0.03232,87349.0,87331.0,0.05732]
[1767070788199,0.0297081,87348.0,87331.0,0.05732]
[1767070788398,0.0297081,87347.0,87331.0,0.05732]
[1767070788596,0.0297081,87346.0,87331.0,0.05732]
[1767070788798,0.03232,87349.0,87331.0,0.05732]
[1767070788998,0.0297081,87348.0,87331.0,0.05732]
[1767070789201,0.0297081,87347.0,87331.0,0.05732]
[1767070789502,0.0297081,87346.0,87331.0,0.05732]
[1767070789701,0.03232,87349.0,87331.0,0.05732]
[1767070789903,0.02970841,87348.0,87331.0,0.05732]
[1767070790102,0.02970841,87347.0,87331.0,0.05732]
[1767070790303,0.02970841,87346.0,87331.0,0.05732]
[1767070790504,0.03232,87349.0,87331.0,0.05732]
[1767070790802,0.02970873,87348.0,87331.0,0.05732]
[1767070791002,0.02970873,87347.0,87331.0,0.05732]
[1767070791202,0.02970873,87346.0,87331.0,0.05732]
[1767070791404,0.03232,87349.0,87331.0,0.05732]
[1767070791604,0.02970954,87348.0,87331.0,0.05732]
[1767070791901,0.02970954,87347.0,87331.0,0.05732]
[1767070792105,0.02970954,87346.0,87331.0,0.05732]
[1767070792305,0.02970954,87345.0,87331.0,0.05732]
[1767070792506,0.03232,87349.0,87331.0,0.05732]
[1767070792709,0.02970986,87348.0,87331.0,0.05732]
[1767070792904,0.02970986,87347.0,87331.0,0.05732]
[1767070793107,0.02970986,87346.0,87331.0,0.05732]
[1767070793304,0.02970986,87345.0,87331.0,0.05732]
[1767070793608,0.0114635,87345.0,87331.0,0.05732]
[1767070794210,0.03232,87349.0,87331.0,0.05732]
[1767070794409,0.02971835,87348.0,87331.0,0.05732]
[1767070794598,0.02971835,87347.0,87331.0,0.05732]
[1767070794802,0.02971835,87346.0,87331.0,0.05732]
[1767070795111,0.0114632,87347.0,87331.0,0.05732]
[1767070795412,0.02971813,87346.0,87331.0,0.05732]
[1767070795606,0.0114632,87347.0,87331.0,0.05732]
[1767070795902,0.02971816,87346.0,87331.0,0.05732]
[1767070796211,0.0114632,87347.0,87331.0,0.05732]
[1767070796512,0.0297178,87346.0,87331.0,0.05732]
[1767070796710,0.0114632,87347.0,87331.0,0.05732]
[1767070796913,0.0297178,87346.0,87331.0,0.05732]
[1767070797109,0.0114632,87347.0,87331.0,0.05732]
[1767070797309,0.02971718,87346.0,87331.0,0.05732]
[1767070797612,0.0114632,87347.0,87331.0,0.05732]
[1767070797813,0.0114635,87345.0,87331.0,0.05732]
[1767070800608,0.02979338,87344.0,87319.0,0.0114668]
[1767070800814,0.0114638,87343.0,87323.0,0.0974]
[1767070801503,0.03232,87349.0,87323.0,0.0974]
[1767070801714,0.18451205,87348.0,87324.0,0.0114662]
[1767070801913,0.02979205,87347.0,87324.0,0.0114662]
[1767070802113,0.02979205,87346.0,87324.0,0.0114662]
[1767070802319,0.0114633,87347.0,87323.0,0.0974]
[1767070802517,0.0297919,87346.0,87323.0,0.0974]
[1767070802707,0.0114633,87347.0,87323.0,0.0974]
[1767070802911,0.02979193,87346.0,87323.0,0.0974]
[1767070803109,0.0114633,87347.0,87323.0,0.0974]
[1767070803312,0.02979186,87346.0,87323.0,0.0974]
[1767070803515,0.029792,87345.0,87323.0,0.0974]
[1767070803718,0.0114633,87347.0,87323.0,0.0974]
[1767070803905,0.02979198,87346.0,87323.0,0.0974]
[1767070804106,0.02979198,87345.0,87323.0,0.0974]
[1767070804311,0.05736,87346.0,87323.0,0.0974]
[1767070804518,0.02979211,87345.0,87323.0,0.0974]
[1767070804722,0.05736,87346.0,87323.0,0.0974]
[1767070805019,0.02979207,87345.0,87323.0,0.0974]
[1767070805211,0.05736,87346.0,87323.0,0.0974]
[1767070805418,0.02979222,87345.0,87323.0,0.0974]
[1767070805610,0.05736,87346.0,87323.0,0.0974]
[1767070805810,0.02979724,87345.0,87323.0,0.0974]
[1767070806012,0.05736,87346.0,87323.0,0.0974]
[1767070806223,0.02980068,87345.0,87323.0,0.0974]
[1767070806517,0.0114635,87345.0,87323.0,0.0974]
[1767070806819,0.02980023,87344.0,87323.0,0.0974]
[1767070807013,0.0114635,87345.0,87323.0,0.0974]
[1767070807207,0.02980032,87344.0,87323.0,0.0974]
[1767070807410,0.05736,87346.0,87323.0,0.0974]
[1767070807708,0.02980031,87345.0,87323.0,0.0974]
[1767070807917,0.02980031,87344.0,87323.0,0.0974]
[1767070808114,0.02980044,87343.0,87323.0,0.0974]
[1767070808320,0.0114635,87345.0,87323.0,0.0974]
[1767070808522,0.02979943,87344.0,87323.0,0.0974]
[1767070808818,0.02979943,87343.0,87323.0,0.0974]
[1767070809022,0.05736,87346.0,87323.0,0.0974]
[1767070809320,0.02979949,87345.0,87323.0,0.0974]
[1767070809509,0.02979949,87344.0,87323.0,0.0974]
[1767070809707,0.05736,87346.0,87323.0,0.0974]
[1767070809916,0.02979945,87345.0,87323.0,0.0974]
[1767070810117,0.02979945,87344.0,87323.0,0.0974]
[1767070810317,0.05736,87346.0,87323.0,0.0974]
[1767070810510,0.02979947,87345.0,87323.0,0.0974]
[1767070810719,0.02979947,87344.0,87323.0,0.0974]
[1767070810923,0.0114635,87345.0,87324.0,0.05736]
[1767070811119,0.02979945,87344.0,87325.0,0.0974]
[1767070811312,0.05732,87346.0,87325.0,0.0974]
[1767070812523,0.0114626,87352.0,87325.0,0.0974]
[1767070812725,0.15472,87351.0,87325.0,0.0974]
[1767070813128,0.0114626,87352.0,87325.0,0.0974]
[1767070813428,0.05732,87351.0,87325.0,0.0974]
[1767070813730,0.15472,87351.0,87325.0,0.0974]
[1767070813922,0.15472,87350.0,87325.0,0.0974]
[1767070814325,0.0114626,87352.0,87325.0,0.0974]
[1767070814621,0.05732,87351.0,87325.0,0.0974]
[1767070814828,0.15472,87351.0,87325.0,0.0974]
[1767070816628,0.0114626,87352.0,87325.0,0.0974]
[1767070816828,0.15472,87351.0,87325.0,0.0974]
[1767070817230,0.0114626,87352.0,87325.0,0.0974]
[1767070817428,0.05732,87350.0,87325.0,0.0974]
[1767070818030,0.0114626,87352.0,87325.0,0.0974]
[1767070818327,0.05732,87349.0,87325.0,0.0974]
[1767070819733,0.0114626,87352.0,87325.0,0.0974]
[1767070819933,0.15472,87351.0,87325.0,0.0974]
[1767070823232,0.0299124,87350.0,87325.0,0.0974]
[1767070823435,0.0299124,87349.0,87325.0,0.0974]
[1767070823635,0.0299124,87348.0,87325.0,0.0974]
[1767070823936,0.0299124,87347.0,87325.0,0.0974]
[1767070824135,0.0299124,87346.0,87325.0,0.0974]
[1767070824335,0.0299124,87345.0,87325.0,0.0974]
[1767070824537,0.0114626,87352.0,87325.0,0.0974]
[1767070824736,0.0114628,87350.0,87325.0,0.0974]
[1767070825035,0.18463227,87349.0,87325.0,0.0974]
[1767070825235,0.02991227,87348.0,87325.0,0.0974]
[1767070825429,0.02991227,87347.0,87325.0,0.0974]
[1767070825629,0.02991227,87346.0,87325.0,0.0974]
[1767070825929,0.02991227,87345.0,87325.0,0.0974]